fUST/lending_fUST_20250930
["ID","MTS","AMOUNT","RATE_DAILY","PERIOD"]
[388560660,1759241307579,-500.0,0.00019178,2]
[388560661,1759241307611,-17.0714671,0.00019178,2]
[388560662,1759241307744,-482.9285329,0.00019178,2]
[388560663,1759241307774,-500.0,0.00019178,2]
[388560664,1759241307802,-480.0,0.00019178,2]
[388560665,1759241307830,-500.0,0.00019178,2]
[388560666,1759241307858,-500.0,0.00019178,2]
[388560667,1759241307888,-483.66182401,0.00019178,2]
[388560668,1759241307916,-489.14,0.00019178,2]
[388560669,1759241307944,-480.0,0.00019178,2]
[388560670,1759241307972,-480.0,0.00019178,2]
[388560671,1759241307999,-206.73512698,0.00019178,2]
[388560672,1759241308533,-480.0,0.00019178,2]
[388560673,1759241308553,-315.07903222,0.00019178,2]
[388560674,1759241308562,-606.86,0.00019178,2]
[388560675,1759241308571,-79.87512698,0.00019178,2]
[388560676,1759241309920,160.3415537,0.00019078,2]
[388560677,1759241313218,-420.12487302,0.00019178,2]
[388560678,1759241313247,-490.53730945,0.00019178,2]
[388560679,1759241313276,-500.0,0.00019178,2]
[388560680,1759241313306,-500.0,0.00019178,2]
[388560681,1759241313335,-500.0,0.00019178,2]
[388560682,1759241313364,-500.0,0.00019178,2]
[388560683,1759241313395,-500.0,0.00019178,2]
[388560684,1759241313424,-500.0,0.00019178,2]
[388560685,1759241313454,-151.0,0.00019178,2]
[388560686,1759241313483,-500.0,0.00019178,2]
[388560687,1759241313512,-151.0,0.00019178,2]
[388560688,1759241313541,-74.68563506,0.00019178,2]
[388560689,1759241313638,-425.31436494,0.00019178,2]
[388560690,1759241313669,-692.84,0.00019178,2]
[388560691,1759241313703,-151.0,0.00019178,2]
[388560692,1759241313733,-151.0,0.00019178,2]
[388560693,1759241313762,-500.0,0.00019178,2]
[388560694,1759241313794,-151.0,0.00019178,2]
[388560695,1759241313824,-500.0,0.00019178,2]
[388560696,1759241313853,-226.72672817,0.00019178,2]
[388560697,1759241313883,-500.0,0.00019178,2]
[388560698,1759241313913,-500.0,0.00019178,2]
[388560699,1759241313943,-500.0,0.00019178,2]
[388560700,1759241313972,-568.2,0.00019178,2]
[388560701,1759241314111,-500.0,0.00019178,2]
[388560702,1759241314141,-500.0,0.00019178,2]
[388560703,1759241314172,-500.0,0.00019178,2]
[388560704,1759241314203,-480.0,0.00019178,2]
[388560705,1759241314233,-500.0,0.00019178,2]
[388560706,1759241314262,-500.0,0.00019178,2]
[388560707,1759241314292,-500.0,0.00019178,2]
[388560708,1759241314322,-500.0,0.00019178,2]
[388560709,1759241314351,-500.0,0.00019178,2]
[388560710,1759241314381,-500.0,0.00019178,2]
[388560711,1759241314525,-500.0,0.00019178,2]
[388560712,1759241314555,-453.159754,0.00019178,2]
[388560713,1759241314585,-151.0,0.00019178,2]
[388560714,1759241314645,-151.0,0.00019178,2]
[388560715,1759241314675,-151.53136813,0.00019178,2]
[388560716,1759241314707,-151.0,0.00019178,2]
[388560717,1759241314740,-151.0,0.00019178,2]
[388560718,1759241314769,-151.48061622,0.00019178,2]
[388560719,1759241314798,-151.0,0.00019178,2]
[388560720,1759241314828,-151.65313993,0.00019178,2]
[388560721,1759241314857,-500.0,0.00019178,2]
[388560722,1759241314886,-151.0,0.00019178,2]
[388560723,1759241314915,-151.0,0.00019178,2]
[388560724,1759241314942,-500.0,0.00019178,2]
[388560725,1759241314974,-500.0,0.00019178,2]
[388560726,1759241315005,-500.0,0.00019178,2]
[388560727,1759241315035,-500.0,0.00019178,2]
[388560728,1759241315951,-350.33657268,0.00019178,2]
[388560729,1759241315966,-149.66342732,0.00019178,2]
[388560730,1759241315976,-350.33657268,0.00019178,2]
[388560731,1759241315992,-70.36024344,0.00019178,2]
[388560732,1759241333376,-79.30318388,0.00019178,2]
[388560733,1759241333409,-500.0,0.00019178,2]
[388560734,1759241333441,-480.0,0.00019178,2]
[388560735,1759241333472,-500.0,0.00019178,2]
[388560736,1759241333502,-500.0,0.00019178,2]
[388560737,1759241333533,-500.0,0.00019178,2]
[388560738,1759241333565,-480.0,0.00019178,2]
[388560739,1759241333598,-519.82,0.00019178,2]
[388560740,1759241333628,-500.0,0.00019178,2]
[388560741,1759241333668,-482.03824376,0.00019178,2]
[388560742,1759241333731,-988.91,0.00019178,2]
[388560743,1759241333762,-500.0,0.00019178,2]
[388560744,1759241333793,-151.0,0.00019178,2]
[388560745,1759241333827,-151.0,0.00019178,2]
[388560746,1759241333859,-151.0,0.00019178,2]
[388560747,1759241333892,-152.316493,0.00019178,2]
[388560748,1759241333929,-500.0,0.00019178,2]
[388560749,1759241333961,-689.72,0.00019178,2]
[388560750,1759241333992,-151.0,0.00019178,2]
[388560751,1759241334023,-156.350595,0.00019178,2]
[388560752,1759241334054,-500.0,0.00019178,2]
[388560753,1759241334084,-500.0,0.00019178,2]
[388560754,1759241334116,-335.35145965,0.00019178,2]
[388560755,1759241334237,-146.7129047,0.00019178,2]
[388560756,1759241334270,-480.0,0.00019178,2]
[388560757,1759241334300,-483.07831198,0.00019178,2]
[388560758,1759241334330,-480.0,0.00019178,2]
[388560759,1759241334362,-500.0,0.00019178,2]
[388560760,1759241334393,-500.0,0.00019178,2]
[388560761,1759241334427,-500.0,0.00019178,2]
[388560762,1759241334460,-563.45,0.00019178,2]
[388560763,1759241334501,-480.0,0.00019178,2]
[388560764,1759241334541,-533.00145425,0.00019178,2]
[388560765,1759241334576,-167.52465814,0.00019178,2]
[388560766,1759241334725,-332.47534186,0.00019178,2]
[388560767,1759241334759,-500.0,0.00019178,2]
[388560768,1759241334791,-500.0,0.00019178,2]
[388560769,1759241334825,-482.11932971,0.00019178,2]
[388560770,1759241335016,-500.0,0.00019178,2]
[388560771,1759241335045,-500.0,0.00019178,2]
[388560772,1759241335074,-500.0,0.00019178,2]
[388560773,1759241335104,-500.0,0.00019178,2]
[388560774,1759241335133,-500.0,0.00019178,2]
[388560775,1759241335164,-483.43881299,0.00019178,2]
[388560776,1759241335316,-500.0,0.00019178,2]
[388560777,1759241335347,-500.0,0.00019178,2]
[388560778,1759241335377,-482.07130456,0.00019178,2]
[388560779,1759241335406,-500.0,0.00019178,2]
[388560780,1759241335435,-500.0,0.00019178,2]
[388560781,1759241335463,-480.0,0.00019178,2]
[388560782,1759241335493,-500.0,0.00019178,2]
[388560783,1759241335522,-480.0,0.00019178,2]
[388560784,1759241335551,-480.0,0.00019178,2]
[388560785,1759241335583,-480.0,0.00019178,2]
[388560786,1759241335720,-500.0,0.00019178,2]
[388560787,1759241335750,-500.0,0.00019178,2]
[388560788,1759241335779,-500.0,0.00019178,2]
[388560789,1759241335808,-480.0,0.00019178,2]
[388560790,1759241335837,-500.0,0.00019178,2]
[388560791,1759241335867,-500.0,0.00019178,2]
[388560792,1759241335895,-480.0,0.00019178,2]
[388560793,1759241335926,-217.37057049,0.00019178,2]
[388560794,1759241335954,-483.12352438,0.00019178,2]
[388560795,1759241335983,-640.7,0.00019178,2]
[388560796,1759241336146,-500.0,0.00019178,2]
[388560797,1759241336178,-500.0,0.00019178,2]
[388560798,1759241336207,-151.0,0.00019178,2]
[388560799,1759241336237,-151.0,0.00019178,2]
[388560800,1759241336265,-151.0,0.00019178,2]
[388560801,1759241336294,-151.0,0.00019178,2]
[388560802,1759241336322,-151.0,0.00019178,2]
[388560803,1759241336350,-151.0,0.00019178,2]
[388560804,1759241336379,-480.0,0.00019178,2]
[388560805,1759241336407,-151.0,0.00019178,2]
[388560806,1759241336436,-845.11,0.00019178,2]
[388560807,1759241337896,-79.98686434,0.00019178,2]
[388560808,1759241337912,-151.0,0.00019178,2]
[388560809,1759241337927,-151.0,0.00019178,2]
[388560810,1759241337943,-151.0,0.00019178,2]
[388560811,1759241337958,-151.0,0.00019178,2]
[388560812,1759241337973,-151.0,0.00019178,2]
[388560813,1759241337988,-151.0,0.00019178,2]
[388560814,1759241338003,-480.0,0.00019178,2]
[388560815,1759241338018,-151.0,0.00019178,2]
[388560816,1759241338034,-1618.80313566,0.00019178,2]
[388560817,1759241338043,-500.0,0.00019178,2]
[388560818,1759241338053,-246.73146296,0.00019178,2]
[388560819,1759241338063,-500.0,0.00019178,2]
[388560820,1759241338072,-344.45026262,0.00019178,2]
[388560821,1759241338081,-870.91513876,0.00019178,2]
[388560822,1759241363372,-300.0,0.00019177,2]
[388560823,1759241402521,300.0,0.00019177,2]
[388560868,1759241431970,-505.50811065,0.00019178,2]
[388560871,1759241431985,-255.83208684,0.00019178,2]
[388560873,1759241431994,-126.65980251,0.00019178,2]
[388560875,1759241432006,-373.34019749,0.00019178,2]
[388560877,1759241432015,-509.20470844,0.00019178,2]
[388560879,1759241432025,-460.0,0.00019178,2]
[388560881,1759241432034,-737.32,0.00019178,2]
[388560883,1759241432043,-500.0,0.00019178,2]
[388560885,1759241432053,-480.0,0.00019178,2]
[388560888,1759241432062,-480.0,0.00019178,2]
[388560890,1759241432072,-480.0,0.00019178,2]
[388560893,1759241432082,-151.50029,0.00019178,2]
[388560895,1759241432092,-802.01,0.00019178,2]
[388560897,1759241432101,-500.0,0.00019178,2]
[388560899,1759241432112,-500.0,0.00019178,2]
[388560900,1759241432121,-500.0,0.00019178,2]
[388560901,1759241432130,-500.0,0.00019178,2]
[388560902,1759241432139,-500.0,0.00019178,2]
[388560903,1759241432149,-500.0,0.00019178,2]
[388560904,1759241432158,-151.0,0.00019178,2]
[388560905,1759241432167,-648.23,0.00019178,2]
[388560906,1759241432176,-509.89,0.00019178,2]
[388560907,1759241432185,-151.41612214,0.00019178,2]
[388560908,1759241432194,-151.0,0.00019178,2]
[388560909,1759241432203,-151.0,0.00019178,2]
[388560910,1759241432213,-151.0,0.00019178,2]
[388560911,1759241432222,-151.0,0.00019178,2]
[388560912,1759241432231,-500.0,0.00019178,2]
[388560913,1759241432240,-151.0,0.00019178,2]
[388560914,1759241432249,-151.0,0.00019178,2]
[388560915,1759241432258,-157.040325,0.00019178,2]
[388560916,1759241432267,-480.0,0.00019178,2]
[388560917,1759241432276,-500.0,0.00019178,2]
[388560918,1759241432285,-481.79363369,0.00019178,2]
[388560919,1759241432294,-151.0,0.00019178,2]
[388560920,1759241432303,-154.26221,0.00019178,2]
[388560922,1759241432312,-500.0,0.00019178,2]
[388560923,1759241432321,-480.0,0.00019178,2]
[388560924,1759241432330,-508.8308198,0.00019178,2]
[388560925,1759241432339,-500.0,0.00019178,2]
[388560927,1759241432348,-500.0,0.00019178,2]
[388560929,1759241432358,-500.0,0.00019178,2]
[388560930,1759241432371,-500.0,0.00019178,2]
[388560932,1759241432380,-500.0,0.00019178,2]
[388560935,1759241432390,-122.27064766,0.00019178,2]
[388561020,1759241437709,-377.72935234,0.00019178,2]
[388561021,1759241437719,-151.0,0.00019178,2]
[388561022,1759241437727,-151.0,0.00019178,2]
[388561023,1759241437739,-476.48154967,0.00019178,2]
[388561024,1759241437751,-151.0,0.00019178,2]
[388561025,1759241437760,-151.0,0.00019178,2]
[388561026,1759241437769,-151.0,0.00019178,2]
[388561027,1759241437778,-151.0,0.00019178,2]
[388561028,1759241437789,-151.0,0.00019178,2]
[388561029,1759241437798,-151.0,0.00019178,2]
[388561030,1759241437812,-151.0,0.00019178,2]
[388561031,1759241437823,-162.742188,0.00019178,2]
[388561032,1759241437832,-500.0,0.00019178,2]
[388561033,1759241437841,-500.0,0.00019178,2]
[388561034,1759241437850,-500.0,0.00019178,2]
[388561035,1759241437860,-54.33497405,0.00019178,2]
[388561036,1759241437871,-445.66502595,0.00019178,2]
[388561037,1759241437880,-500.0,0.00019178,2]
[388561038,1759241437889,-500.0,0.00019178,2]
[388561039,1759241437899,-500.0,0.00019178,2]
[388561040,1759241437909,-500.0,0.00019178,2]
[388561041,1759241437918,-151.0,0.00019178,2]
[388561042,1759241437927,-500.0,0.00019178,2]
[388561043,1759241437936,-500.0,0.00019178,2]
[388561044,1759241437944,-349.40569703,0.00019178,2]
[388561045,1759241437956,-150.59430297,0.00019178,2]
[388561046,1759241437965,-500.0,0.00019178,2]
[388561047,1759241437974,-480.0,0.00019178,2]
[388561048,1759241437987,-480.0,0.00019178,2]
[388561049,1759241437996,-477.74931571,0.00019178,2]
[388561050,1759241438005,-195.85416909,0.00019178,2]
[388561052,1759241438022,-304.14583091,0.00019178,2]
[388561053,1759241438031,-17215.15019836,0.00019178,2]
[388561055,1759241438043,-371.10201164,0.00019178,2]
[388561057,1759241438054,-484.42076106,0.00019178,2]
[388561060,1759241438066,-1246.55525642,0.00019178,2]
[388561063,1759241438090,-1599.64,0.00019178,2]
[388561065,1759241438102,-2619.61892872,0.00019178,2]
[388561067,1759241438112,-151.0,0.00019178,2]
[388561069,1759241438122,-154.969931,0.00019178,2]
[388561071,1759241438131,-3123.77,0.00019178,2]
[388561073,1759241438141,-170.77522972,0.00019178,2]
[388561075,1759241438150,-151.0,0.00019178,2]
[388561078,1759241438160,-500.0,0.00019178,2]
[388561080,1759241438169,-155.216495,0.00019178,2]
[388561082,1759241438180,-500.0,0.00019178,2]
[388561083,1759241438189,-500.0,0.00019178,2]
[388561085,1759241438199,-500.0,0.00019178,2]
[388561087,1759241438209,-482.11949753,0.00019178,2]
[388561089,1759241438218,-500.0,0.00019178,2]
[388561091,1759241438228,-480.0,0.00019178,2]
[388561093,1759241438239,-500.0,0.00019178,2]
[388561095,1759241438248,-500.0,0.00019178,2]
[388561115,1759241438430,-500.0,0.00019178,2]
[388561117,1759241438440,-480.0,0.00019178,2]
[388561119,1759241438449,-480.0,0.00019178,2]
[388561121,1759241438459,-500.0,0.00019178,2]
[388561123,1759241438468,-500.0,0.00019178,2]
[388561125,1759241438477,-500.0,0.00019178,2]
[388561127,1759241438488,-500.0,0.00019178,2]
[388561129,1759241438497,-480.0,0.00019178,2]
[388561131,1759241438506,-480.0,0.00019178,2]
[388561133,1759241438515,-480.0,0.00019178,2]
[388561135,1759241438524,-500.0,0.00019178,2]
[388561137,1759241438533,-480.0,0.00019178,2]
[388561139,1759241438542,-500.0,0.00019178,2]
[388561141,1759241438551,-500.0,0.00019178,2]
[388561142,1759241438560,-500.0,0.00019178,2]
[388561143,1759241438569,-500.0,0.00019178,2]
[388561144,1759241438579,-480.0,0.00019178,2]
[388561145,1759241438588,-500.0,0.00019178,2]
[388561146,1759241438598,-483.43881299,0.00019178,2]
[388561147,1759241438607,-500.0,0.00019178,2]
[388561148,1759241438617,-480.0,0.00019178,2]
[388561149,1759241438626,-500.0,0.00019178,2]
[388561150,1759241438635,-281.07,0.00019178,2]
[388561151,1759241438645,-482.58139132,0.00019178,2]
[388561152,1759241438657,-480.0,0.00019178,2]
[388561153,1759241438666,-500.0,0.00019178,2]
[388561154,1759241438676,-10189.1935387,0.00019178,2]
[388561155,1759241438685,-10.39477868,0.00019178,2]
[388561161,1759241439858,-489.60522132,0.00019178,2]
[388561162,1759241439868,-151.0,0.00019178,2]
[388561163,1759241439878,-151.0,0.00019178,2]
[388561164,1759241439890,-268.21296073,0.00019178,2]
[388561165,1759241439900,-152.146688,0.00019178,2]
[388561166,1759241439909,-313.0233671,0.00019178,2]
[388561167,1759241439919,-500.0,0.00019178,2]
[388561168,1759241439928,-480.0,0.00019178,2]
[388561169,1759241439938,-500.0,0.00019178,2]
[388561170,1759241439947,-500.0,0.00019178,2]
[388561171,1759241439956,-500.0,0.00019178,2]
[388561172,1759241439966,-480.0,0.00019178,2]
[388561173,1759241439975,-500.0,0.00019178,2]
[388561174,1759241439986,-460.0,0.00019178,2]
[388561175,1759241439996,-480.0,0.00019178,2]
[388561176,1759241440005,-1225.0,0.00019178,2]
[388561177,1759241440014,-487.17628758,0.00019178,2]
[388561178,1759241440024,-151.0,0.00019178,2]
[388561179,1759241440034,-500.0,0.00019178,2]
[388561180,1759241440043,-500.0,0.00019178,2]
[388561181,1759241440052,-151.0,0.00019178,2]
[388561182,1759241440062,-480.0,0.00019178,2]
[388561183,1759241440071,-500.0,0.00019178,2]
[388561184,1759241440080,-480.0,0.00019178,2]
[388561185,1759241440090,-972.24,0.00019178,2]
[388561186,1759241440099,-630.0,0.00019178,2]
[388561187,1759241440110,-151.0,0.00019178,2]
[388561188,1759241440119,-151.0,0.00019178,2]
[388561189,1759241440129,-151.0,0.00019178,2]
[388561190,1759241440138,-151.0,0.00019178,2]
[388561191,1759241440147,-151.0,0.00019178,2]
[388561192,1759241440159,-151.0,0.00019178,2]
[388561193,1759241440168,-151.0,0.00019178,2]
[388561194,1759241440177,-151.0,0.00019178,2]
[388561195,1759241440187,-273.316856,0.00019178,2]
[388561196,1759241440197,-492.02,0.00019178,2]
[388561197,1759241440207,-3911.17,0.00019178,2]
[388561198,1759241440217,-500.0,0.00019178,2]
[388561199,1759241440226,-151.0,0.00019178,2]
[388561200,1759241440237,-284.240516,0.00019178,2]
[388561201,1759241440246,-200.0,0.00019178,10]
[388561202,1759241440255,-200.0,0.00019178,10]
[388561203,1759241440265,-200.0,0.00019178,10]
[388561204,1759241440276,-200.0,0.00019178,10]
[388561206,1759241440285,-200.0,0.00019178,10]
[388561207,1759241440295,-480.0,0.00019178,2]
[388561208,1759241440305,-200.0,0.00019178,10]
[388561209,1759241440314,-200.0,0.00019178,10]
[388561211,1759241440324,-200.0,0.00019178,10]
[388561213,1759241440334,-200.0,0.00019178,10]
[388561215,1759241440344,-200.0,0.00019178,10]
[388561216,1759241440354,-200.0,0.00019178,10]
[388561218,1759241440364,-200.0,0.00019178,10]
[388561220,1759241440373,-200.0,0.00019178,10]
[388561222,1759241440384,-200.0,0.00019178,10]
[388561224,1759241440393,-200.0,0.00019178,10]
[388561225,1759241440402,-200.0,0.00019178,10]
[388561227,1759241440411,-200.0,0.00019178,10]
[388561229,1759241440421,-200.0,0.00019178,10]
[388561230,1759241440430,-200.0,0.00019178,10]
[388561231,1759241440439,-200.0,0.00019178,10]
[388561232,1759241440449,-200.0,0.00019178,10]
[388561233,1759241440458,-200.0,0.00019178,10]
[388561234,1759241440467,-500.0,0.00019178,2]
[388561235,1759241440476,-500.0,0.00019178,2]
[388561236,1759241440486,-500.0,0.00019178,2]
[388561237,1759241440496,-480.0,0.00019178,2]
[388561238,1759241440505,-400.2261398,0.00019178,2]
[388561246,1759241445885,-81.04732648,0.00019178,2]
[388561247,1759241445895,-480.0,0.00019178,2]
[388561248,1759241445908,-500.0,0.00019178,2]
[388561249,1759241445920,-500.0,0.00019178,2]
[388561250,1759241445929,-297.7426838,0.00019178,2]
[388561255,1759241462795,300.0,0.00019177,2]
[388561256,1759241523141,300.0,0.00019177,2]
[388561257,1759241544887,250.0,0.00018977,2]
[388561258,1759241582794,300.0,0.00019177,2]
[388561259,1759241643017,300.0,0.00019177,2]
[388561260,1759241748387,3056.55344113,0.0002011,13]
[388561261,1759241820506,30286.02144456,0.00025999,60]
[388561265,1759241964426,-1200.0,0.00019177,2]
[388561266,1759241964458,-300.0,0.00019177,2]
[388561283,1759242002575,300.0,0.00019177,2]
[388561290,1759242003578,300.0,0.00019177,2]
[388561306,1759242008608,-509819.10241228,0.00033144,60]
[388561307,1759242008698,-15456.93230126,0.00033144,60]
[388561310,1759242008795,-7000.0,0.00033144,60]
[388561312,1759242008892,-200.0,0.00033144,120]
[388561315,1759242009057,6794.78758223,0.00033144,60]
[388561467,1759242063306,300.0,0.00019177,2]
[388561468,1759242122710,300.0,0.00019177,2]
[388561472,1759242183083,300.0,0.00019177,2]
[388561473,1759242191884,617.46513,0.00033144,60]
[388561476,1759242246514,300.0,0.00019177,2]
[388561508,1759242513155,6031.39280916,0.00024108,120]
[388561511,1759242518641,7052.51303463,0.00024,120]
[388561517,1759242521737,10000.0,0.0002191,120]
[388561522,1759242565276,-300.0,0.00019177,2]
[388561673,1759242635710,-500.0,0.00019178,2]
[388561674,1759242635720,-6250.5981286,0.00019178,2]
[388561675,1759242635730,-297.48597191,0.00019178,2]
[388561676,1759242635740,-7351.78957955,0.00019178,2]
[388561705,1759242638122,-1420.90143905,0.00019178,2]
[388561706,1759242638132,-500.0,0.00019178,2]
[388561707,1759242638142,-500.0,0.00019178,2]
[388561708,1759242638152,-500.0,0.00019178,2]
[388561709,1759242638162,-500.0,0.00019178,2]
[388561710,1759242638171,-500.0,0.00019178,2]
[388561711,1759242638182,-500.0,0.00019178,2]
[388561712,1759242638191,-500.0,0.00019178,2]
[388561713,1759242638201,-500.0,0.00019178,2]
[388561714,1759242638211,-500.0,0.00019178,2]
[388561715,1759242638221,-500.0,0.00019178,2]
[388561716,1759242638230,-500.0,0.00019178,2]
[388561717,1759242638241,-500.0,0.00019178,2]
[388561718,1759242638250,-460.0,0.00019178,2]
[388561719,1759242638259,-500.0,0.00019178,2]
[388561720,1759242638269,-500.0,0.00019178,2]
[388561721,1759242638280,-500.0,0.00019178,2]
[388561722,1759242638290,-500.0,0.00019178,2]
[388561724,1759242638304,-500.0,0.00019178,2]
[388561726,1759242638315,-295.33188591,0.00019178,2]
[388561728,1759242638325,-500.0,0.00019178,2]
[388561730,1759242638335,-500.0,0.00019178,2]
[388561732,1759242638345,-500.0,0.00019178,2]
[388561733,1759242638355,-500.0,0.00019178,2]
[388561734,1759242638364,-771.37,0.00019178,2]
[388561735,1759242638375,-500.0,0.00019178,2]
[388561736,1759242638387,-500.0,0.00019178,2]
[388561737,1759242638396,-460.0,0.00019178,2]
[388561738,1759242638405,-400.17244851,0.00019178,2]
[388561739,1759242638414,-500.0,0.00019178,2]
[388561740,1759242638423,-670.39,0.00019178,2]
[388561741,1759242638432,-151.0,0.00019178,2]
[388561742,1759242638440,-151.0,0.00019178,2]
[388561743,1759242638450,-151.0,0.00019178,2]
[388561744,1759242638459,-151.0,0.00019178,2]
[388561745,1759242638468,-680.65,0.00019178,2]
[388561746,1759242638477,-500.0,0.00019178,2]
[388561747,1759242638486,-500.0,0.00019178,2]
[388561748,1759242638497,-500.0,0.00019178,2]
[388561749,1759242638507,-500.0,0.00019178,2]
[388561750,1759242638518,-500.0,0.00019178,2]
[388561751,1759242638527,-460.0,0.00019178,2]
[388561752,1759242638537,-500.0,0.00019178,2]
[388561753,1759242638547,-500.0,0.00019178,2]
[388561754,1759242638556,-500.0,0.00019178,2]
[388561755,1759242638565,-500.0,0.00019178,2]
[388561756,1759242638574,-500.0,0.00019178,2]
[388561757,1759242638584,-515.93,0.00019178,2]
[388561758,1759242638593,-151.0,0.00019178,2]
[388561759,1759242638603,-151.0,0.00019178,2]
[388561760,1759242638612,-151.0,0.00019178,2]
[388561761,1759242638622,-182.90262507,0.00019178,2]
[388561762,1759242638631,-500.0,0.00019178,2]
[388561763,1759242638639,-500.0,0.00019178,2]
[388561764,1759242638648,-500.0,0.00019178,2]
[388561765,1759242638657,-501.75,0.00019178,2]
[388561766,1759242638667,-500.0,0.00019178,2]
[388561767,1759242638676,-500.0,0.00019178,2]
[388561768,1759242638685,-500.0,0.00019178,2]
[388561769,1759242638694,-287.69375448,0.00019178,2]
[388561770,1759242638703,-500.0,0.00019178,2]
[388561771,1759242638712,-151.0,0.00019178,2]
[388561772,1759242638721,-500.0,0.00019178,2]
[388561773,1759242638730,-500.0,0.00019178,2]
[388561774,1759242638741,-151.0,0.00019178,2]
[388561775,1759242638750,-500.0,0.00019178,2]
[388561776,1759242638915,-500.0,0.00019178,2]
[388561777,1759242638925,-995.82,0.00019178,2]
[388561778,1759242638935,-500.0,0.00019178,2]
[388561779,1759242638945,-694.53,0.00019178,2]
[388561780,1759242638954,-465.43096213,0.00019178,2]
[388561781,1759242638963,-566.45,0.00019178,2]
[388561782,1759242638972,-500.0,0.00019178,2]
[388561783,1759242638982,-500.0,0.00019178,2]
[388561784,1759242638993,-180.284543,0.00019178,2]
[388561785,1759242639003,-151.0,0.00019178,2]
[388561786,1759242639012,-326.06469394,0.00019178,2]
[388561787,1759242639022,-151.0,0.00019178,2]
[388561788,1759242639031,-500.0,0.00019178,2]
[388561789,1759242639041,-500.0,0.00019178,2]
[388561790,1759242639049,-500.0,0.00019178,2]
[388561791,1759242639059,-500.0,0.00019178,2]
[388561792,1759242639068,-4109.6,0.00019178,2]
[388561793,1759242639077,-500.0,0.00019178,2]
[388561794,1759242639086,-300.51778742,0.00019178,2]
[388561795,1759242639095,-806.24,0.00019178,2]
[388561796,1759242639105,-266.31,0.00019178,2]
[388561797,1759242639114,-500.0,0.00019178,2]
[388561798,1759242639123,-500.0,0.00019178,2]
[388561799,1759242639133,-224.95127797,0.00019178,2]
[388561800,1759242639143,-898.90530676,0.00019178,2]
[388561801,1759242639152,-151.0,0.00019178,2]
[388561802,1759242639162,-500.0,0.00019178,2]
[388561803,1759242639171,-151.0,0.00019178,2]
[388561804,1759242639181,-151.0,0.00019178,2]
[388561805,1759242639191,-151.0,0.00019178,2]
[388561806,1759242639201,-151.0,0.00019178,2]
[388561807,1759242639210,-500.0,0.00019178,2]
[388561808,1759242639221,-500.0,0.00019178,2]
[388561809,1759242639230,-151.0,0.00019178,2]
[388561810,1759242639242,-151.0,0.00019178,2]
[388561811,1759242639252,-196.088868,0.00019178,2]
[388561812,1759242639263,-520.0,0.00019178,2]
[388561813,1759242639273,-500.0,0.00019178,2]
[388561814,1759242639284,-500.0,0.00019178,2]
[388561815,1759242639295,-500.0,0.00019178,2]
[388561816,1759242639307,-500.0,0.00019178,2]
[388561817,1759242639316,-480.0,0.00019178,2]